fUSD/lending_fUSD_20240122
["ID","MTS","AMOUNT","RATE_DAILY","PERIOD"]
[312520175,1705942247195,-500.0,0.00054794,120]
[312520176,1705942247204,-882.54,0.00054794,2]
[312520177,1705942247214,-1098.14,0.00054794,120]
[312520178,1705942247224,-500.0,0.00054794,120]
[312520179,1705942247234,-500.0,0.00054794,120]
[312520180,1705942247244,-500.0,0.00054794,120]
[312520181,1705942247254,-1272.77,0.00054794,120]
[312520182,1705942247264,-500.0,0.00054794,120]
[312520183,1705942247274,-855.01,0.00054794,120]
[312520184,1705942247285,-500.0,0.00054794,120]
[312520185,1705942247294,-500.0,0.00054794,120]
[312520186,1705942247304,-1433.57,0.00054794,120]
[312520187,1705942247314,-500.0,0.00054794,120]
[312520188,1705942247324,-1004.38,0.00054794,120]
[312520189,1705942247334,-500.0,0.00054794,120]
[312520190,1705942247345,-500.0,0.00054794,120]
[312520191,1705942247355,-500.0,0.00054794,120]
[312520192,1705942247365,-613.63,0.00054794,120]
[312520193,1705942247375,-500.0,0.00054794,120]
[312520194,1705942247385,-500.0,0.00054794,120]
[312520195,1705942247395,-500.0,0.00054794,120]
[312520196,1705942247405,-500.0,0.00054794,120]
[312520197,1705942247416,-1058.65,0.00054794,120]
[312520198,1705942247425,-511.59,0.00054794,120]
[312520199,1705942247435,-851.13,0.00054794,120]
[312520200,1705942247445,-500.0,0.00054794,120]
[312520201,1705942247455,-582.10757432,0.00054794,120]
[312520202,1705942247465,-500.0,0.00054794,120]
[312520203,1705942247480,-933.89,0.00054794,120]
[312520204,1705942247491,-500.0,0.00054794,120]
[312520205,1705942247502,-711.76,0.00054794,120]
[312520206,1705942247514,-500.0,0.00054794,120]
[312520207,1705942247524,-500.0,0.00054794,120]
[312520208,1705942247534,-572.52,0.00054794,120]
[312520209,1705942247544,-500.0,0.00054794,120]
[312520210,1705942247555,-500.0,0.00054794,120]
[312520211,1705942247565,-773.03,0.00054794,120]
[312520212,1705942247575,-500.0,0.00054794,120]
[312520213,1705942247584,-500.0,0.00054794,120]
[312520214,1705942247594,-762.64,0.00054794,120]
[312520215,1705942247605,-500.0,0.00054794,120]
[312520216,1705942247615,-500.0,0.00054794,120]
[312520217,1705942247625,-509.59,0.00054794,120]
[312520218,1705942247635,-508.1467256,0.00054794,120]
[312520219,1705942247645,-1002.76,0.00054794,120]
[312520220,1705942247656,-665.88,0.00054794,120]
[312520221,1705942247665,-550.0,0.00054794,120]
[312520222,1705942247676,-550.0,0.00054794,120]
[312520223,1705942247685,-500.0,0.00054794,120]
[312520224,1705942247694,-550.0,0.00054794,120]
[312520225,1705942247705,-550.0,0.00054794,120]
[312520226,1705942247715,-550.0,0.00054794,120]
[312520227,1705942247725,-229.7460292,0.00054794,120]
[312520228,1705942247735,-500.0,0.00054794,120]
[312520229,1705942247746,-550.0,0.00054794,120]
[312520230,1705942247757,-550.0,0.00054794,120]
[312520231,1705942247767,-550.0,0.00054794,120]
[312520232,1705942247778,-550.0,0.00054794,120]
[312520233,1705942247788,-503.83954388,0.00054794,120]
[312520234,1705942247798,-550.0,0.00054794,120]
[312520235,1705942247808,-550.0,0.00054794,120]
[312520236,1705942247818,-550.0,0.00054794,120]
[312520237,1705942247828,-550.0,0.00054794,120]
[312520238,1705942247837,-550.0,0.00054794,120]
[312520239,1705942247848,-550.0,0.00054794,120]
[312520240,1705942247858,-550.0,0.00054794,120]
[312520241,1705942247868,-500.0,0.00054794,120]
[312520242,1705942247878,-550.0,0.00054794,120]
[312520243,1705942247887,-500.0,0.00054794,120]
[312520244,1705942247896,-550.0,0.00054794,120]
[312520245,1705942247906,-500.0,0.00054794,120]
[312520246,1705942247916,-904.02,0.00054794,120]
[312520247,1705942247926,-550.0,0.00054794,120]
[312520248,1705942247936,-827.04,0.00054794,120]
[312520249,1705942247947,-413.19938413,0.00054794,120]
[312520250,1705942247957,-704.08,0.00054794,120]
[312520251,1705942247967,-376.4438334,0.00054794,120]
[312520252,1705942247977,-500.0,0.00054794,120]
[312520253,1705942247987,-787.53,0.00054794,120]
[312520254,1705942247998,-1047.73,0.00054794,120]
[312520255,1705942248009,-872.35,0.00054794,120]
[312520256,1705942248020,-500.0,0.00054794,120]
[312520257,1705942248030,-500.0,0.00054794,120]
[312520258,1705942248041,-500.0,0.00054794,120]
[312520259,1705942248051,-500.0,0.00054794,120]
[312520260,1705942248062,-973.07,0.00054794,120]
[312520261,1705942248071,-500.0,0.00054794,120]
[312520262,1705942248081,-500.0,0.00054794,120]
[312520263,1705942248091,-500.0,0.00054794,120]
[312520264,1705942248101,-1055.58,0.00054794,120]
[312520265,1705942248111,-500.0,0.00054794,120]
[312520266,1705942248121,-635.51034236,0.00054794,120]
[312520267,1705942248130,-500.0,0.00054794,120]
[312520268,1705942248141,-592.41,0.00054794,120]
[312520269,1705942248150,-500.0,0.00054794,120]
[312520270,1705942248160,-500.0,0.00054794,120]
[312520271,1705942248170,-500.0,0.00054794,120]
[312520272,1705942248179,-1284.43,0.00054794,120]
[312520273,1705942248189,-500.0,0.00054794,120]
[312520274,1705942248198,-511.38585999,0.00054794,120]
[312520275,1705942248208,-1139.91,0.00054794,120]
[312520276,1705942248217,-500.0,0.00054794,120]
[312520277,1705942248227,-500.0,0.00054794,120]
[312520278,1705942248236,-562.17,0.00054794,120]
[312520279,1705942248245,-750.36,0.00054794,120]
[312520280,1705942248255,-539.03,0.00054794,120]
[312520281,1705942248265,-1374.87,0.00054794,120]
[312520282,1705942248274,-500.0,0.00054794,120]
[312520283,1705942248284,-711.43,0.00054794,120]
[312520284,1705942248293,-579.03,0.00054794,120]
[312520285,1705942248303,-500.0,0.00054794,120]
[312520286,1705942248313,-500.0,0.00054794,120]
[312520287,1705942248322,-1076.02,0.00054794,120]
[312520288,1705942248331,-500.0,0.00054794,120]
[312520289,1705942248340,-500.0,0.00054794,120]
[312520290,1705942248350,-1080.86,0.00054794,120]
[312520291,1705942248360,-559.5,0.00054794,120]
[312520292,1705942248369,-500.0,0.00054794,120]
[312520293,1705942248378,-500.0,0.00054794,120]
[312520294,1705942248388,-1198.92,0.00054794,120]
[312520295,1705942248397,-546.17,0.00054794,120]
[312520296,1705942248407,-1032.79,0.00054794,120]
[312520297,1705942248417,-500.0,0.00054794,120]
[312520298,1705942248427,-912.89,0.00054794,120]
[312520299,1705942248436,-1291.04,0.00054794,120]
[312520300,1705942248446,-504.95756832,0.00054794,120]
[312520301,1705942248456,-719.62,0.00054794,120]
[312520302,1705942248469,-500.0,0.00054794,120]
[312520303,1705942248483,-1228.18,0.00054794,120]
[312520304,1705942248493,-500.0,0.00054794,120]
[312520305,1705942248503,-500.0,0.00054794,120]
[312520306,1705942248514,-500.0,0.00054794,120]
[312520307,1705942248524,-1064.71,0.00054794,120]
[312520308,1705942248534,-933.5,0.00054794,120]
[312520309,1705942248544,-500.0,0.00054794,120]
[312520310,1705942248555,-500.0,0.00054794,120]
[312520311,1705942248564,-523.21588842,0.00054794,120]
[312520312,1705942248574,-512.46,0.00054794,120]
[312520313,1705942248583,-1092.85,0.00054794,120]
[312520314,1705942248593,-1122.93,0.00054794,120]
[312520315,1705942248603,-500.0,0.00054794,120]
[312520316,1705942248615,-500.0,0.00054794,120]
[312520317,1705942248624,-834.87,0.00054794,120]
[312520318,1705942248633,-1098.97,0.00054794,120]
[312520319,1705942248643,-500.0,0.00054794,120]
[312520320,1705942248652,-500.0,0.00054794,120]
[312520321,1705942248662,-500.0,0.00054794,120]
[312520322,1705942248671,-500.0,0.00054794,120]
[312520323,1705942248680,-500.0,0.00054794,120]
[312520324,1705942248689,-1124.27,0.00054794,120]
[312520325,1705942248699,-500.0,0.00054794,120]
[312520326,1705942248709,-548.35,0.00054794,120]
[312520327,1705942248719,-500.0,0.00054794,120]
[312520328,1705942248729,-676.24,0.00054794,120]
[312520329,1705942248738,-1183.29,0.00054794,120]
[312520330,1705942248748,-1234.09,0.00054794,120]
[312520331,1705942248758,-500.0,0.00054794,120]
[312520332,1705942248768,-500.0,0.00054794,120]
[312520333,1705942248777,-500.0,0.00054794,120]
[312520334,1705942248786,-500.0,0.00054794,120]
[312520335,1705942248796,-942.51,0.00054794,120]
[312520336,1705942248805,-500.0,0.00054794,120]
[312520337,1705942248814,-539.8,0.00054794,120]
[312520338,1705942248824,-500.0,0.00054794,120]
[312520339,1705942248834,-500.0,0.00054794,120]
[312520340,1705942248843,-1200.35,0.00054794,120]
[312520341,1705942248853,-995.47,0.00054794,120]
[312520342,1705942248864,-500.0,0.00054794,120]
[312520343,1705942248874,-1034.97,0.00054794,120]
[312520344,1705942248883,-500.0,0.00054794,120]
[312520345,1705942248893,-500.0,0.00054794,120]
[312520346,1705942248902,-874.88,0.00054794,120]
[312520347,1705942248911,-500.0,0.00054794,120]
[312520348,1705942248920,-500.0,0.00054794,120]
[312520349,1705942248930,-500.0,0.00054794,120]
[312520350,1705942248940,-500.0,0.00054794,120]
[312520351,1705942248949,-507.23,0.00054794,120]
[312520352,1705942248958,-562.05,0.00054794,120]
[312520353,1705942248967,-514.2,0.00054794,120]
[312520354,1705942248977,-1038.58,0.00054794,120]
[312520355,1705942249195,-1546.51,0.00054794,2]
[312520356,1705942249205,-500.0,0.00054794,120]
[312520357,1705942249214,-1166.09,0.00054794,120]
[312520358,1705942249224,-552.78,0.00054794,120]
[312520359,1705942249233,-500.0,0.00054794,120]
[312520360,1705942249243,-500.0,0.00054794,120]
[312520361,1705942249252,-500.0,0.00054794,120]
[312520362,1705942249261,-500.0,0.00054794,120]
[312520363,1705942249271,-916.75,0.00054794,120]
[312520364,1705942249280,-500.0,0.00054794,120]
[312520365,1705942249290,-500.0,0.00054794,120]
[312520366,1705942249299,-731.13,0.00054794,120]
[312520367,1705942249308,-825.25,0.00054794,120]
[312520368,1705942249318,-703.42,0.00054794,120]
[312520369,1705942249328,-306.42735171,0.00054794,120]
[312520370,1705942249338,-500.0,0.00054794,120]
[312520371,1705942249347,-692.04,0.00054794,120]
[312520372,1705942249358,-500.0,0.00054794,120]
[312520373,1705942249368,-597.16,0.00054794,120]
[312520374,1705942249376,-553.41509572,0.00054794,120]
[312520375,1705942249386,-609.93,0.00054794,120]
[312520376,1705942249395,-500.0,0.00054794,7]
[312520377,1705942249404,-500.0,0.00054794,120]
[312520378,1705942249414,-500.0,0.00054794,120]
[312520379,1705942249423,-500.0,0.00054794,120]
[312520380,1705942249432,-668.81,0.00054794,120]
[312520381,1705942249441,-604.43,0.00054794,120]
[312520382,1705942249450,-500.0,0.00054794,120]
[312520383,1705942249460,-435.51,0.00054794,120]
[312520384,1705942249470,-820.72,0.00054794,120]
[312520385,1705942249481,-500.0,0.00054794,120]
[312520386,1705942249490,-500.0,0.00054794,2]
[312520387,1705942249500,-500.0,0.00054794,120]
[312520388,1705942249510,-510.66,0.00054794,120]
[312520389,1705942249520,-1104.92,0.00054794,120]
[312520390,1705942249529,-500.0,0.00054794,120]
[312520391,1705942249538,-500.0,0.00054794,120]
[312520392,1705942249549,-500.0,0.00054794,120]
[312520393,1705942249558,-150.0,0.00054794,14]
[312520394,1705942249567,-611.57,0.00054794,120]
[312520395,1705942249577,-500.0,0.00054794,120]
[312520396,1705942249586,-500.0,0.00054794,120]
[312520397,1705942249596,-500.0,0.00054794,120]
[312520398,1705942249606,-705.3,0.00054794,120]
[312520399,1705942249615,-782.46,0.00054794,120]
[312520400,1705942249625,-500.0,0.00054794,120]
[312520401,1705942249634,-1193.75,0.00054794,120]
[312520402,1705942249643,-500.0,0.00054794,120]
[312520403,1705942249653,-500.0,0.00054794,120]
[312520404,1705942249662,-500.0,0.00054794,120]
[312520405,1705942249671,-841.24,0.00054794,120]
[312520406,1705942249680,-774.06,0.00054794,120]
[312520407,1705942249689,-500.0,0.00054794,120]
[312520408,1705942249699,-525.07174403,0.00054794,120]
[312520409,1705942249708,-706.09,0.00054794,120]
[312520410,1705942249717,-1049.13,0.00054794,120]
[312520411,1705942249726,-500.0,0.00054794,120]
[312520412,1705942249735,-722.39,0.00054794,120]
[312520413,1705942249744,-724.99,0.00054794,120]
[312520414,1705942249754,-500.0,0.00054794,120]
[312520415,1705942249763,-724.99,0.00054794,120]
[312520416,1705942249772,-724.99,0.00054794,120]
[312520417,1705942249782,-724.99,0.00054794,120]
[312520418,1705942249790,-500.0,0.00054794,120]
[312520419,1705942249800,-724.99,0.00054794,120]
[312520420,1705942249809,-1098.78,0.00054794,120]
[312520421,1705942249818,-724.99,0.00054794,120]
[312520422,1705942249828,-724.99,0.00054794,120]
[312520423,1705942249837,-724.99,0.00054794,120]
[312520424,1705942249846,-724.99,0.00054794,120]
[312520425,1705942249855,-724.99,0.00054794,120]
[312520426,1705942249865,-724.99,0.00054794,120]
[312520427,1705942249874,-724.99,0.00054794,120]
[312520428,1705942249883,-724.99,0.00054794,120]
[312520429,1705942249892,-724.99,0.00054794,120]
[312520430,1705942249901,-500.0,0.00054794,120]
[312520431,1705942249910,-724.99,0.00054794,120]
[312520432,1705942249919,-724.99,0.00054794,120]
[312520433,1705942249928,-724.99,0.00054794,120]
[312520434,1705942249937,-1040.43,0.00054794,120]
[312520435,1705942249946,-724.99,0.00054794,120]
[312520436,1705942249955,-724.99,0.00054794,120]
[312520437,1705942249964,-724.99,0.00054794,120]
[312520438,1705942249973,-724.99,0.00054794,120]
[312520439,1705942249982,-724.99,0.00054794,120]
[312520440,1705942249991,-724.99,0.00054794,120]
[312520441,1705942250000,-1000.0,0.00054794,120]
[312520442,1705942250009,-725.04230049,0.00054794,120]
[312520443,1705942250018,-928.04083934,0.00054794,120]
[312520444,1705942250027,-676.51,0.00054794,120]
[312520445,1705942250036,-500.0,0.00054794,120]
[312520446,1705942250046,-1000.0,0.00054794,7]
[312520447,1705942250055,-800.29,0.00054794,120]
[312520448,1705942250070,-977.04,0.00054794,120]
[312520449,1705942250079,-940.44,0.00054794,120]
[312520450,1705942250088,-812.24,0.00054794,120]
[312520451,1705942250097,-622.73,0.00054794,120]
[312520452,1705942250107,-4003.53,0.00054794,120]
[312520453,1705942250117,-222.23823439,0.00054794,120]
[312520454,1705942250126,-543.32,0.00054794,120]
[312520455,1705942250135,-762.89,0.00054794,120]
[312520456,1705942250145,-683.59,0.00054794,120]
[312520457,1705942250154,-735.35,0.00054794,120]
[312520458,1705942250164,-500.0,0.00054794,120]
[312520459,1705942250173,-500.0,0.00054794,120]
[312520460,1705942250181,-500.0,0.00054794,120]
[312520461,1705942250190,-7945.75,0.00054794,120]
[312520462,1705942250200,-500.0,0.00054794,120]
[312520463,1705942250209,-752.98,0.00054794,120]
[312520464,1705942250218,-1119.94,0.00054794,120]
[312520465,1705942250227,-658.72,0.00054794,120]
[312520466,1705942250237,-590.12,0.00054794,120]
[312520467,1705942250249,-500.0,0.00054794,120]
[312520468,1705942250258,-500.0,0.00054794,120]
[312520469,1705942250267,-500.0,0.00054794,120]
[312520470,1705942250276,-500.0,0.00054794,120]
[312520471,1705942250285,-1197.36,0.00054794,120]
[312520472,1705942250295,-873.76,0.00054794,120]
[312520473,1705942250304,-536.78,0.00054794,120]
[312520474,1705942250313,-1072.31,0.00054794,120]
[312520475,1705942250322,-500.0,0.00054794,120]
[312520476,1705942250331,-500.0,0.00054794,120]
[312520477,1705942250341,-500.0,0.00054794,120]
[312520478,1705942250350,-916.28,0.00054794,120]
[312520479,1705942250360,-894.82,0.00054794,120]
[312520480,1705942250369,-500.0,0.00054794,120]
[312520481,1705942250378,-500.0,0.00054794,120]
[312520482,1705942250388,-500.0,0.00054794,120]
[312520483,1705942250397,-500.0,0.00054794,120]
[312520484,1705942250406,-500.0,0.00054794,120]
[312520485,1705942250415,-500.0,0.00054794,120]
[312520486,1705942250424,-563.54,0.00054794,120]
[312520487,1705942250435,-984.92,0.00054794,120]
[312520488,1705942250445,-500.0,0.00054794,120]
[312520489,1705942250454,-500.0,0.00054794,120]
[312520490,1705942250464,-500.0,0.00054794,120]
[312520491,1705942250476,-2024.59,0.00054794,7]
[312520492,1705942250487,-429.3555006,0.00054794,120]
[312520493,1705942250496,-500.0,0.00054794,120]
[312520494,1705942250506,-500.0,0.00054794,120]
[312520495,1705942250517,-873.84,0.00054794,120]
[312520496,1705942250526,-500.0,0.00054794,120]
[312520497,1705942250535,-500.0,0.00054794,120]
[312520498,1705942250545,-500.0,0.00054794,120]
[312520499,1705942250556,-500.0,0.00054794,120]
[312520500,1705942250566,-1503.79,0.00054794,120]
[312520501,1705942250576,-500.0,0.00054794,120]
[312520502,1705942250585,-646.15,0.00054794,120]
[312520503,1705942250595,-500.0,0.00054794,120]
[312520504,1705942250604,-500.0,0.00054794,120]
[312520505,1705942250615,-781.35,0.00054794,120]
[312520506,1705942250625,-159.92237704,0.00054794,120]
[312520507,1705942250634,-564.76,0.00054794,120]
[312520508,1705942250644,-1064.36,0.00054794,120]
[312520509,1705942250653,-500.0,0.00054794,120]
[312520510,1705942250663,-519.13,0.00054794,120]
[312520511,1705942250672,-1095.74,0.00054794,120]
[312520512,1705942250682,-1291.13,0.00054794,120]
[312520513,1705942250691,-500.0,0.00054794,120]
[312520514,1705942250701,-712.79,0.00054794,120]
[312520515,1705942250711,-500.0,0.00054794,120]
[312520516,1705942250720,-500.0,0.00054794,120]
[312520517,1705942250730,-529.51792874,0.00054794,120]
[312520518,1705942250739,-736.14,0.00054794,120]
[312520519,1705942250749,-1311.07,0.00054794,120]
[312520520,1705942250759,-500.0,0.00054794,120]
[312520521,1705942250768,-500.0,0.00054794,120]
[312520522,1705942250778,-500.0,0.00054794,120]
[312520523,1705942250787,-500.0,0.00054794,120]
[312520524,1705942250796,-500.0,0.00054794,120]
[312520525,1705942250805,-500.0,0.00054794,120]
[312520526,1705942250814,-1000.0,0.00054794,7]
[312520527,1705942250824,-997.27,0.00054794,120]
[312520528,1705942250833,-1180.26,0.00054794,30]
[312520529,1705942250842,-879.87,0.00054794,120]
[312520530,1705942250851,-500.0,0.00054794,120]
[312520531,1705942250862,-500.0,0.00054794,120]
[312520532,1705942250871,-500.0,0.00054794,120]
[312520533,1705942250880,-500.0,0.00054794,120]
[312520534,1705942250889,-500.0,0.00054794,120]
[312520535,1705942250898,-1101.52,0.00054794,120]
[312520536,1705942250908,-750.0,0.00054794,120]
[312520537,1705942250917,-500.0,0.00054794,120]
[312520538,1705942250926,-1000.0,0.00054794,120]
[312520539,1705942250935,-596.97,0.00054794,120]
[312520540,1705942250944,-500.0,0.00054794,120]
[312520541,1705942250954,-677.87,0.00054794,120]
[312520542,1705942250963,-500.0,0.00054794,120]
[312520543,1705942250972,-500.0,0.00054794,120]
[312520544,1705942250981,-500.0,0.00054794,120]
[312520545,1705942250990,-500.0,0.00054794,30]
[312520546,1705942250999,-758.09,0.00054794,120]
[312520547,1705942251008,-500.0,0.00054794,120]
[312520548,1705942251018,-504.42041176,0.00054794,120]
[312520549,1705942251027,-500.0,0.00054794,120]
[312520550,1705942251036,-500.0,0.00054794,120]
[312520551,1705942251046,-500.0,0.00054794,120]
[312520552,1705942251055,-678.57,0.00054794,120]
[312520553,1705942251064,-500.0,0.00054794,120]
[312520554,1705942251073,-500.0,0.00054794,7]
[312520555,1705942251083,-500.0,0.00054794,120]
[312520556,1705942251092,-764.95,0.00054794,120]
[312520557,1705942251101,-500.0,0.00054794,120]
[312520558,1705942251111,-500.0,0.00054794,120]
[312520559,1705942251120,-521.0,0.00054794,120]
[312520560,1705942251129,-552.31,0.00054794,120]
[312520561,1705942251138,-535.75,0.00054794,120]
[312520562,1705942251147,-500.0,0.00054794,120]
[312520563,1705942251156,-500.0,0.00054794,120]
[312520564,1705942251165,-500.0,0.00054794,120]
[312520565,1705942251174,-500.0,0.00054794,120]
[312520566,1705942251184,-1153.09,0.00054794,120]
[312520567,1705942251192,-768.51,0.00054794,120]
[312520568,1705942251202,-500.0,0.00054794,120]
[312520569,1705942251211,-1045.19,0.00054794,120]
[312520570,1705942251221,-500.0,0.00054794,120]
[312520571,1705942251230,-876.25,0.00054794,120]
[312520572,1705942251239,-697.88,0.00054794,120]
[312520573,1705942251248,-500.0,0.00054794,120]
[312520574,1705942251257,-500.0,0.00054794,120]
[312520575,1705942251266,-619.89,0.00054794,120]
[312520576,1705942251275,-746.34,0.00054794,120]
[312520577,1705942251284,-503.91,0.00054794,120]
[312520578,1705942251293,-770.55,0.00054794,120]
[312520579,1705942251302,-515.99,0.00054794,120]
[312520580,1705942251312,-533.69,0.00054794,120]
[312520581,1705942251322,-500.0,0.00054794,120]
[312520582,1705942251331,-1181.85,0.00054794,120]
[312520583,1705942251341,-500.0,0.00054794,120]
[312520584,1705942251350,-500.0,0.00054794,120]
[312520585,1705942251360,-500.0,0.00054794,120]
[312520586,1705942251370,-1727.31,0.00054794,120]
[312520587,1705942251379,-500.0,0.00054794,120]
[312520588,1705942251389,-500.0,0.00054794,120]
[312520589,1705942251398,-500.0,0.00054794,120]
[312520590,1705942251407,-953.83,0.00054794,120]
[312520591,1705942251416,-500.0,0.00054794,120]
[312520592,1705942251425,-609.57,0.00054794,120]
[312520593,1705942251434,-500.0,0.00054794,120]
[312520594,1705942251443,-759.29,0.00054794,120]
[312520595,1705942251452,-517.57,0.00054794,120]
[312520596,1705942251462,-563.49,0.00054794,120]
[312520597,1705942251474,-500.0,0.00054794,120]
[312520598,1705942251484,-500.0,0.00054794,120]
[312520599,1705942251493,-1765.42,0.00054794,120]
[312520600,1705942251502,-945.78,0.00054794,120]
[312520601,1705942251513,-2780.15,0.00054794,120]
[312520602,1705942251522,-500.0,0.00054794,120]
[312520603,1705942251532,-1143.05,0.00054794,120]
[312520604,1705942251540,-500.0,0.00054794,120]
[312520605,1705942251549,-500.0,0.00054794,120]
[312520606,1705942251558,-739.81,0.00054794,120]
[312520607,1705942251568,-500.0,0.00054794,120]
[312520608,1705942251577,-630.92,0.00054794,120]
[312520609,1705942251586,-500.0,0.00054794,120]
[312520610,1705942251595,-500.0,0.00054794,120]
[312520611,1705942251604,-500.0,0.00054794,120]
[312520612,1705942251614,-6946.56,0.00054794,120]
[312520613,1705942251623,-729.29,0.00054794,120]
[312520614,1705942251632,-500.0,0.00054794,120]
[312520615,1705942251643,-500.0,0.00054794,120]
[312520616,1705942251652,-1112.59,0.00054794,120]
[312520617,1705942251661,-779.09,0.00054794,120]
[312520618,1705942251670,-3649.41,0.00054794,120]
[312520619,1705942251679,-500.0,0.00054794,120]
[312520620,1705942251689,-500.0,0.00054794,120]
[312520621,1705942251697,-500.0,0.00054794,120]
[312520622,1705942251707,-500.0,0.00054794,120]
[312520623,1705942251716,-1830.13,0.00054794,120]
[312520624,1705942251725,-8171.7,0.00054794,120]
[312520625,1705942251734,-500.0,0.00054794,120]
[312520626,1705942251744,-598.39,0.00054794,120]
[312520627,1705942251753,-500.0,0.00054794,120]
[312520628,1705942251762,-885.03,0.00054794,120]
[312520629,1705942251771,-552.57,0.00054794,120]
[312520630,1705942251780,-500.0,0.00054794,120]
[312520631,1705942251789,-500.0,0.00054794,120]
[312520632,1705942251798,-500.0,0.00054794,120]
[312520633,1705942251807,-681.33,0.00054794,120]
[312520634,1705942251816,-2620.03,0.00054794,120]
[312520635,1705942251826,-236.70202957,0.00054794,120]
[312520636,1705942251835,-500.0,0.00054794,120]
[312520637,1705942251844,-500.0,0.00054794,120]
[312520638,1705942251853,-385.6,0.00054794,120]
[312520639,1705942251863,-500.0,0.00054794,120]
[312520640,1705942251872,-500.0,0.00054794,120]
[312520641,1705942251882,-674.46,0.00054794,120]
[312520642,1705942251892,-580.85,0.00054794,120]
[312520643,1705942251903,-1767.29,0.00054794,120]
[312520644,1705942251912,-722.83,0.00054794,120]
[312520645,1705942251922,-500.0,0.00054794,120]
[312520646,1705942251930,-500.0,0.00054794,120]
[312520647,1705942251941,-717.86,0.00054794,120]
[312520648,1705942251951,-500.0,0.00054794,120]
[312520649,1705942251960,-210.58022046,0.00054794,120]
[312520650,1705942251969,-500.0,0.00054794,120]
[312520651,1705942251978,-1143.05,0.00054794,120]
[312520652,1705942251987,-1133.33,0.00054794,120]
[312520653,1705942251997,-500.0,0.00054794,120]
[312520654,1705942252006,-500.0,0.00054794,120]
[312520655,1705942252014,-1000.0,0.00054794,120]
[312520656,1705942252023,-500.0,0.00054794,120]
[312520657,1705942252032,-540.86,0.00054794,120]
[312520658,1705942252041,-500.0,0.00054794,120]
[312520659,1705942252051,-500.0,0.00054794,120]
[312520660,1705942252061,-500.0,0.00054794,120]
[312520661,1705942252070,-610.88,0.00054794,120]
[312520662,1705942252079,-500.0,0.00054794,120]
[312520663,1705942252089,-5682.89,0.00054794,120]
[312520664,1705942252099,-917.6,0.00054794,120]
[312520665,1705942252109,-774.42,0.00054794,120]
[312520666,1705942252118,-638.56,0.00054794,120]
[312520667,1705942252126,-1451.88,0.00054794,120]
[312520668,1705942252136,-500.0,0.00054794,120]
[312520669,1705942252145,-2543.46,0.00054794,120]
[312520670,1705942252155,-2607.73,0.00054794,120]
[312520671,1705942252164,-745.28,0.00054794,120]
[312520672,1705942252173,-500.0,0.00054794,120]
[312520673,1705942252360,-500.0,0.00054794,120]
[312520674,1705942252370,-820.5,0.00054794,120]